bitfinex/quotes_BTCUSD_20241120
["timestamp","ask_amount","ask_price","bid_price","bid_amount"]
[1732107248090,0.00029893,93618.0,93617.0,0.18714996]
[1732107248503,0.00029893,93618.0,93617.0,0.21014996]
[1732107248922,0.00029893,93618.0,93617.0,0.08709]
[1732107249760,0.00029893,93618.0,93604.0,0.128198]
[1732107249960,0.00029893,93618.0,93599.0,0.12305996]
[1732107249961,0.00029893,93618.0,93617.0,0.06409]
[1732107250079,0.00029893,93618.0,93615.0,0.064092]
[1732107250279,0.00029893,93618.0,93612.0,0.064093]
[1732107250529,0.00029893,93618.0,93611.0,0.064094]
[1732107250701,0.00029893,93618.0,93605.0,0.064098]
[1732107250876,0.10711512,93617.0,93603.0,0.023]
[1732107251270,0.10711512,93617.0,93592.0,0.12305996]
[1732107251271,0.10711512,93617.0,93600.0,0.023]
[1732107251485,0.10711512,93617.0,93599.0,0.064102]
[1732107251627,0.10711512,93617.0,93602.0,0.1282]
[1732107251832,0.10711512,93617.0,93602.0,0.0641]
[1732107252262,0.10711512,93617.0,93604.0,0.064099]
[1732107252465,0.10711512,93617.0,93602.0,0.0641]
[1732107252716,0.01986336,93616.0,93603.0,0.064099]
[1732107252850,0.12697848,93615.0,93605.0,0.064098]
[1732107253059,0.12697848,93615.0,93599.0,0.064103]
[1732107253060,0.01986336,93614.0,93599.0,0.064103]
[1732107253268,0.12697848,93613.0,93605.0,0.064099]
[1732107253479,0.12697848,93613.0,93599.0,0.064103]
[1732107253480,0.01986336,93612.0,93599.0,0.064103]
[1732107253684,0.10711512,93613.0,93599.0,0.064103]
[1732107253685,0.12697848,93611.0,93599.0,0.064103]
[1732107253906,0.01986336,93610.0,93594.0,0.064106]
[1732107254105,0.01986336,93610.0,93587.0,0.06411]
[1732107254106,0.12697848,93609.0,93574.0,0.0781]
[1732107254313,0.0454,93598.0,93588.0,0.023]
[1732107254516,0.20857848,93597.0,93588.0,0.023]
[1732107254727,0.01986336,93596.0,93587.0,0.06411]
[1732107254925,0.12697848,93595.0,93587.0,0.06411]
[1732107255239,0.01986336,93594.0,93567.0,0.064125]
[1732107255478,0.12697848,93593.0,93566.0,0.03561894]
[1732107255656,0.12697848,93593.0,93585.0,0.064112]
[1732107255657,0.01986336,93592.0,93585.0,0.064112]
[1732107255881,0.12697848,93591.0,93582.0,0.064114]
[1732107256094,0.01986336,93590.0,93570.0,0.12305996]
[1732107256354,0.12697848,93589.0,93581.0,0.064114]
[1732107256523,0.10711512,93589.0,93581.0,0.064114]
[1732107256743,0.01987172,93588.0,93581.0,0.064114]
[1732107256940,0.01987259,93587.0,93583.0,0.064114]
[1732107257176,0.01987259,93586.0,93581.0,0.064114]
[1732107257523,0.10711512,93588.0,93581.0,0.064114]
[1732107257524,0.10711512,93588.0,93581.0,0.128229]
[1732107257675,0.10711512,93588.0,93582.0,0.064114]
[1732107258251,0.10711512,93588.0,93581.0,0.064114]
[1732107258252,0.10711512,93588.0,93579.0,0.064116]
[1732107258452,0.10711512,93588.0,93572.0,0.064121]
[1732107258453,0.10711512,93588.0,93582.0,0.0017114]
[1732107258661,0.106857,93583.0,93582.0,0.0017114]
[1732107258857,0.23384818,93583.0,93582.0,0.0017114]
[1732107259087,0.21397212,93583.0,93582.0,0.0017114]
[1732107259289,0.2338493,93583.0,93582.0,0.0017114]
[1732107260385,0.2811493,93583.0,93582.0,0.0017114]
[1732107260772,0.4740493,93583.0,93582.0,0.0017114]
[1732107260985,0.45417212,93583.0,93582.0,0.0017114]
[1732107261194,0.50586058,93583.0,93582.0,0.0017114]
[1732107261422,0.51586058,93583.0,93582.0,0.0017114]
[1732107261766,0.50586058,93583.0,93582.0,0.0017114]
[1732107261969,0.20610358,93583.0,93582.0,0.0017114]
[1732107262163,0.25779204,93583.0,93582.0,0.0017114]
[1732107262612,0.36464904,93583.0,93582.0,0.0017114]
[1732107262741,0.25779204,93583.0,93582.0,0.0017114]
[1732107262951,0.36464904,93583.0,93582.0,0.0017114]
[1732107264795,0.15441512,93583.0,93582.0,0.0017114]
[1732107265005,0.10711512,93583.0,93582.0,0.0658254]
[1732107266523,0.01,93591.0,93587.0,0.064111]
[1732107266772,0.10711512,93590.0,93587.0,0.064111]
[1732107267002,0.10711512,93590.0,93585.0,0.064112]
[1732107267203,0.10711512,93590.0,93586.0,0.064111]
[1732107267408,0.10711512,93590.0,93585.0,0.064112]
[1732107267609,0.01,93589.0,93582.0,0.0017114]
[1732107267809,0.10711512,93588.0,93582.0,0.0017114]
[1732107268055,0.10711512,93588.0,93585.0,0.064112]
[1732107268404,0.10711512,93588.0,93586.0,0.064111]
[1732107268623,0.10711512,93588.0,93587.0,0.064111]
[1732107268836,0.1270023,93588.0,93587.0,0.064111]
[1732107271098,0.213658,93608.0,93587.0,0.064111]
[1732107271343,0.10711512,93606.0,93604.0,0.064099]
[1732107271560,0.10711512,93606.0,93601.0,0.064101]
[1732107271976,0.10711512,93606.0,93603.0,0.064099]
[1732107272416,0.10711512,93606.0,93605.0,0.064099]
[1732107272832,0.0008557,93613.0,93601.0,0.064101]
[1732107273032,0.0008557,93613.0,93588.0,0.06411]
[1732107273033,0.10711512,93612.0,93609.0,0.064096]
[1732107273898,0.10711512,93612.0,93596.0,0.064105]
[1732107274100,0.10711512,93612.0,93605.0,0.064099]
[1732107274320,0.10711512,93612.0,93609.0,0.128192]
[1732107274725,0.10711512,93612.0,93598.0,0.064103]
[1732107274954,0.10711512,93612.0,93600.0,0.064102]
[1732107275161,0.10683,93607.0,93590.0,0.064109]
[1732107275361,0.10711512,93606.0,93600.0,0.064102]
[1732107275711,0.10711512,93606.0,93583.0,0.023]
[1732107276118,0.10711512,93606.0,93602.0,0.0641]
[1732107276346,0.10711512,93606.0,93602.0,0.1282]
[1732107276678,0.10711512,93606.0,93602.0,0.0641]
[1732107277306,0.10711512,93606.0,93591.0,0.064108]
[1732107277307,0.10711512,93606.0,93596.0,0.064104]
[1732107277528,0.21394512,93606.0,93601.0,0.064101]
[1732107277734,0.10711512,93606.0,93590.0,0.064108]
[1732107277932,0.106838,93599.0,93593.0,0.064107]
[1732107278158,0.213666,93604.0,93594.0,0.064106]
[1732107278159,0.10711512,93598.0,93594.0,0.064106]
[1732107278371,0.10711512,93598.0,93584.0,0.064113]
[1732107278372,0.10711512,93598.0,93585.0,0.064112]
[1732107278529,0.10711512,93598.0,93593.0,0.064106]
[1732107278729,0.106841,93597.0,93590.0,0.064109]
[1732107278974,0.10711512,93596.0,93592.0,0.064107]
[1732107279148,0.10711512,93596.0,93595.0,0.064105]
[1732107280062,0.10711512,93596.0,93594.0,0.064106]
[1732107280263,0.0476,93599.0,93593.0,0.064107]
[1732107280387,0.213664,93605.0,93597.0,0.064104]
[1732107280388,0.10711512,93598.0,93597.0,0.064104]
[1732107280997,0.10711512,93598.0,93595.0,0.064105]
[1732107281522,0.21395512,93598.0,93592.0,0.064107]
[1732107282053,0.21395512,93598.0,93587.0,0.064111]
[1732107282054,0.10711512,93598.0,93587.0,0.064111]
[1732107282281,0.106842,93596.0,93590.0,0.064109]
[1732107282488,0.10711512,93598.0,93597.0,0.064104]
[1732107282695,0.10711512,93598.0,93595.0,0.064105]
[1732107282876,0.10711512,93598.0,93594.0,0.064106]
[1732107283078,0.10711512,93598.0,93595.0,0.064105]
[1732107283297,0.10711512,93598.0,93592.0,0.064107]
[1732107283577,0.32079412,93598.0,93590.0,0.064109]
[1732107283859,0.106843,93595.0,93588.0,0.06411]
[1732107284082,0.10711512,93598.0,93582.0,0.2017114]
[1732107284083,0.21395512,93598.0,93591.0,0.064108]
[1732107284303,0.10711512,93597.0,93582.0,0.2017114]
[1732107284513,0.106857,93583.0,93582.0,0.2017114]
[1732107284708,0.21397212,93583.0,93582.0,0.2017114]
[1732107285672,0.152351,93589.0,93583.0,0.064113]
[1732107285876,0.10711512,93584.0,93583.0,0.064114]
[1732107286552,0.01,93592.0,93589.0,0.064109]
[1732107286688,0.10711512,93591.0,93590.0,0.064109]
[1732107286905,0.01,93602.0,93582.0,0.2017114]
[1732107287114,0.10711512,93597.0,93592.0,0.064107]
[1732107287370,0.10711512,93597.0,93596.0,0.064105]
[1732107287611,0.10711512,93597.0,93592.0,0.128214]
[1732107287836,0.10711512,93597.0,93582.0,0.2808114]
[1732107287837,0.21395612,93597.0,93590.0,0.064109]
[1732107288064,0.21395612,93597.0,93593.0,0.064106]
[1732107288244,0.21395612,93597.0,93593.0,0.128212]
[1732107288379,0.10711512,93597.0,93593.0,0.064106]
[1732107288587,0.10711512,93597.0,93593.0,0.128212]
[1732107289005,0.10711512,93597.0,93594.0,0.064106]
[1732107289217,0.213684,93596.0,93588.0,0.06411]
[1732107289415,0.10711512,93597.0,93588.0,0.06411]
[1732107289607,0.10711512,93597.0,93591.0,0.064108]
[1732107289829,0.106842,93596.0,93591.0,0.064108]
[1732107290029,0.106843,93595.0,93591.0,0.064108]
[1732107290198,0.10711512,93597.0,93591.0,0.064108]
[1732107290404,0.213686,93595.0,93585.0,0.064112]
[1732107290608,0.10711512,93594.0,93585.0,0.064112]
[1732107290801,0.10711512,93594.0,93582.0,0.2017114]
[1732107290981,0.106847,93592.0,93587.0,0.06411]
[1732107291196,0.21396212,93592.0,93588.0,0.06411]
[1732107291570,0.10711512,93592.0,93588.0,0.06411]
[1732107291703,0.10711512,93592.0,93588.0,0.12822]
[1732107291909,0.21396212,93592.0,93588.0,0.06411]
[1732107292089,0.10711512,93592.0,93584.0,0.064113]
[1732107292298,0.106853,93587.0,93582.0,0.2658254]
[1732107292504,0.106852,93588.0,93582.0,0.2658254]
[1732107292704,0.10685,93589.0,93584.0,0.064113]
[1732107293337,0.106851,93588.0,93584.0,0.064113]
[1732107293565,0.106849,93590.0,93583.0,0.064114]
[1732107293769,0.106849,93590.0,93585.0,0.064112]
[1732107294196,0.10711512,93591.0,93586.0,0.064111]
[1732107294448,0.21396312,93591.0,93586.0,0.064111]
[1732107294597,0.10711512,93591.0,93586.0,0.064111]
[1732107294961,0.427396,93590.0,93582.0,0.2017114]
[1732107295175,0.213702,93588.0,93582.0,0.2017114]
[1732107295385,0.10711512,93587.0,93582.0,0.2017114]
[1732107295513,0.32082012,93587.0,93582.0,0.2017114]
[1732107295716,0.106853,93586.0,93582.0,0.2658254]
[1732107295917,0.106853,93586.0,93582.0,0.2017114]
[1732107295918,0.10711512,93585.0,93582.0,0.2017114]
[1732107296376,0.10711512,93585.0,93582.0,0.2658254]
[1732107296548,0.10711512,93585.0,93584.0,0.064113]
[1732107296751,0.213678,93599.0,93592.0,0.064107]
[1732107297003,0.10711512,93594.0,93592.0,0.064107]
[1732107297228,0.10711512,93594.0,93590.0,0.128217]
[1732107297448,0.106846,93592.0,93587.0,0.064111]
[1732107297671,0.10711512,93591.0,93588.0,0.06411]
[1732107298116,0.0008556,93599.0,93595.0,0.064105]
[1732107298342,0.0008556,93599.0,93582.0,0.2017114]
[1732107298343,0.10711512,93598.0,93593.0,0.064106]
[1732107298569,0.10711512,93598.0,93592.0,0.064107]
[1732107298799,0.10711512,93598.0,93586.0,0.064111]
[1732107298984,0.0008556,93599.0,93597.0,0.064104]
[1732107299189,0.0008556,93599.0,93598.0,0.064103]
[1732107299444,0.0008556,93599.0,93598.0,0.18716296]
[1732107299892,0.0008556,93599.0,93598.0,0.21016296]
[1732107302956,0.0008556,93599.0,93598.0,0.24427393]
[1732107303156,0.0008556,93599.0,93598.0,0.32397393]
[1732107304186,0.0008556,93599.0,93598.0,0.47347393]
[1732107305317,0.0008556,93599.0,93598.0,0.56845443]
[1732107305565,0.0008556,93599.0,93598.0,0.47347393]
[1732107308847,0.0008556,93599.0,93598.0,0.59058905]
[1732107309983,0.0008556,93599.0,93598.0,0.71364901]
[1732107310190,0.0008556,93599.0,93598.0,0.86605512]
[1732107310449,0.0008556,93599.0,93598.0,0.86602235]
[1732107310665,0.0008556,93599.0,93598.0,0.72364901]
[1732107311019,0.0008556,93599.0,93598.0,0.60058905]
[1732107311221,0.0008556,93599.0,93598.0,0.6158538]
[1732107311427,0.0008556,93599.0,93598.0,0.47347393]
[1732107317068,0.0008556,93606.0,93605.0,0.01]
[1732107317270,0.0008556,93606.0,93605.0,0.52937408]
[1732107317471,0.0008556,93606.0,93605.0,0.53937408]
[1732107317874,0.0008556,93606.0,93605.0,0.72911572]
[1732107318080,0.0008556,93606.0,93605.0,0.72902257]
[1732107318298,0.0008556,93606.0,93605.0,0.53937408]
[1732107318500,0.0008556,93606.0,93605.0,0.51707275]
[1732107318727,0.0008556,93606.0,93605.0,0.56237408]
[1732107318925,0.0008556,93606.0,93605.0,0.65718787]
[1732107319430,0.0008556,93606.0,93605.0,0.56237408]
[1732107320631,0.0008556,93606.0,93605.0,0.70462243]
[1732107320812,0.0008556,93606.0,93605.0,0.65713191]
[1732107321207,0.0008556,93606.0,93605.0,0.56237408]
[1732107321412,6e-07,93606.0,93605.0,0.56237408]
[1732107322123,6e-07,93606.0,93605.0,0.65710517]
[1732107322329,6e-07,93606.0,93605.0,0.56237408]
[1732107322948,6e-07,93606.0,93605.0,0.65710517]
[1732107323241,6e-07,93606.0,93605.0,0.56435937]
[1732107323429,6e-07,93606.0,93605.0,0.56237408]
[1732107324189,0.00029893,93618.0,93617.0,0.01]
[1732107324442,0.00029893,93618.0,93617.0,0.36060512]
[1732107324594,9.3e-07,93619.0,93618.0,0.26629]
[1732107324771,9.3e-07,93619.0,93618.0,0.37340512]
[1732107325805,9.3e-07,93619.0,93618.0,0.39640512]
[1732107326194,0.0004,93639.0,93629.0,0.074082]
[1732107326574,0.0004,93639.0,93629.0,0.65571704]
[1732107326898,0.0004,93639.0,93629.0,0.71395348]
[1732107327343,0.0004,93639.0,93629.0,0.59089352]
[1732107327555,0.0004,93639.0,93629.0,0.71395348]
[1732107329147,0.0004,93639.0,93629.0,0.46783356]
[1732107329359,0.0004,93639.0,93629.0,0.71395348]
[1732107329569,4e-07,93630.0,93629.0,0.71395348]
[1732107329711,4e-07,93630.0,93629.0,0.72395348]
[1732107332124,4e-07,93630.0,93629.0,0.47783356]
[1732107332325,4e-07,93630.0,93629.0,0.72395348]
[1732107332762,4e-07,93630.0,93629.0,0.80089352]
[1732107332962,4e-07,93630.0,93629.0,0.92395348]
[1732107334256,4e-07,93630.0,93629.0,0.92822148]
[1732107335626,4e-07,93630.0,93629.0,0.88142148]
[1732107335864,4e-07,93630.0,93629.0,0.87715348]
[1732107336292,4e-07,93630.0,93629.0,0.65249352]
[1732107336459,4e-07,93630.0,93629.0,0.65420412]
[1732107336670,4e-07,93630.0,93629.0,0.63120412]
[1732107337815,4e-07,93630.0,93629.0,0.65420412]
[1732107339761,4e-07,93630.0,93629.0,0.547089]
[1732107341627,0.065401,93630.0,93629.0,0.2017106]
[1732107342037,0.07873069,93630.0,93629.0,0.2017106]
[1732107342470,0.37584881,93630.0,93629.0,0.2017106]
[1732107342683,0.39584881,93630.0,93629.0,0.2017106]
[1732107342883,0.38584881,93630.0,93629.0,0.2017106]
[1732107344116,0.39584881,93630.0,93629.0,0.2017106]
[1732107347553,0.39584881,93630.0,93583.0,0.01]
[1732107347554,0.01,93612.0,93592.0,0.02206226]
[1732107347760,0.02,93606.0,93592.0,0.02206226]
[1732107347970,0.0163,93593.0,93592.0,0.08617026]
[1732107348175,0.14331572,93593.0,93592.0,0.08617026]
[1732107348379,0.14331572,93593.0,93592.0,0.20923022]
[1732107348380,0.0362006,93593.0,93592.0,0.20923022]
[1732107348577,0.0199006,93593.0,93592.0,0.20923022]
[1732107348783,0.0163,93604.0,93603.0,0.0641]
[1732107348994,0.0361805,93604.0,93603.0,0.0641]
[1732107349425,0.1430135,93604.0,93593.0,0.064107]
[1732107349648,0.0198805,93603.0,93600.0,0.064102]
[1732107349850,0.0163,93604.0,93592.0,0.02206226]
[1732107349851,0.0198805,93602.0,93601.0,0.064101]
[1732107350684,0.0198805,93602.0,93599.0,0.064102]
[1732107350685,0.12699562,93602.0,93599.0,0.064102]
[1732107350859,0.0163,93604.0,93601.0,0.064101]
[1732107351068,0.01986533,93603.0,93601.0,0.064101]
[1732107351273,0.01986533,93602.0,93593.0,0.064107]
[1732107351473,0.106839,93599.0,93594.0,0.064106]
[1732107351717,0.10206533,93598.0,93592.0,0.02377286]
[1732107351951,0.01986533,93597.0,93592.0,0.02377286]
[1732107352164,0.0822,93598.0,93594.0,0.064106]
[1732107352165,0.01986533,93596.0,93594.0,0.064106]
[1732107352422,0.01986533,93595.0,93594.0,0.064106]
[1732107352668,0.12698045,93595.0,93594.0,0.064106]
[1732107353244,0.01986533,93595.0,93594.0,0.064106]
[1732107353591,0.0163,93604.0,93603.0,0.0641]
[1732107353788,0.1432565,93604.0,93603.0,0.0641]
[1732107354524,0.14325304,93604.0,93602.0,0.064101]
[1732107354725,0.01983792,93603.0,93602.0,0.064101]
[1732107354960,0.162516,93619.0,93612.0,0.064094]
[1732107355194,0.01,93617.0,93612.0,0.064093]
[1732107355414,0.12694949,93616.0,93613.0,0.064093]
[1732107355618,0.12694949,93616.0,93612.0,0.064093]
[1732107355619,0.10711512,93616.0,93615.0,0.064092]
[1732107355814,0.12694675,93616.0,93614.0,0.064092]
[1732107356044,0.10711512,93616.0,93615.0,0.064092]
[1732107356295,0.1269467,93616.0,93614.0,0.064092]
[1732107356617,0.10711512,93616.0,93615.0,0.064092]
[1732107356810,0.12694557,93616.0,93615.0,0.064092]
[1732107357844,0.01983045,93616.0,93615.0,0.064092]
[1732107358049,0.01983045,93616.0,93610.0,0.12305996]
[1732107358050,0.0464,93631.0,93610.0,0.12305996]
[1732107358254,0.0464,93631.0,93629.0,0.064082]
[1732107358457,0.01983173,93630.0,93628.0,0.064083]
[1732107358663,4e-07,93630.0,93629.0,0.064082]
[1732107358872,0.01983167,93630.0,93629.0,0.064082]
[1732107359419,4e-07,93630.0,93629.0,0.064082]
[1732107362245,4e-07,93630.0,93629.0,0.087082]
[1732107362664,4e-07,93630.0,93629.0,0.269182]
[1732107362915,4e-07,93630.0,93629.0,0.39629712]
[1732107363569,4e-07,93630.0,93629.0,0.39800772]
[1732107364732,4e-07,93630.0,93629.0,0.38800772]
[1732107365256,4e-07,93630.0,93629.0,0.39800772]
[1732107366016,4e-07,93630.0,93629.0,0.38800772]
[1732107366607,4e-07,93630.0,93629.0,0.2808926]
[1732107367688,4e-07,93630.0,93629.0,0.39800772]
[1732107367918,4e-07,93630.0,93629.0,0.39999301]
[1732107368080,4e-07,93630.0,93629.0,0.39800772]
[1732107377107,4e-07,93630.0,93629.0,0.2708926]
[1732107377322,4e-07,93630.0,93629.0,0.0657926]
[1732107377774,4e-07,93630.0,93629.0,0.0017106]
[1732107377946,4e-07,93630.0,93629.0,0.0657926]
[1732107379132,4e-07,93630.0,93629.0,0.0635343]
[1732107380237,0.18391552,93630.0,93629.0,0.0635343]
[1732107380560,0.18391552,93630.0,93629.0,0.064082]
[1732107381801,0.20377066,93630.0,93629.0,0.064082]
[1732107382167,0.18391552,93630.0,93629.0,0.064082]
[1732107382416,0.20378103,93630.0,93629.0,0.064082]
[1732107382562,0.12698103,93630.0,93629.0,0.064082]
[1732107382766,0.01986591,93630.0,93629.0,0.064082]
[1732107382977,4e-07,93630.0,93629.0,0.064082]
[1732107384424,0.01988681,93630.0,93629.0,0.064082]
[1732107385317,4e-07,93630.0,93629.0,0.064082]
[1732107385524,0.01988815,93630.0,93629.0,0.064082]
[1732107385729,0.01988815,93630.0,93629.0,0.140382]
[1732107385995,4e-07,93630.0,93629.0,0.140382]
[1732107386199,4e-07,93630.0,93629.0,0.064082]
[1732107388418,0.0004,93639.0,93629.0,0.064082]
[1732107388622,0.05180625,93638.0,93622.0,0.064087]
[1732107388950,0.05180625,93637.0,93635.0,0.064077]
[1732107389132,0.10711512,93644.0,93643.0,0.064073]
[1732107389318,0.06513647,93644.0,93643.0,0.064073]
[1732107389915,0.05180776,93644.0,93643.0,0.064073]
[1732107390333,0.04180776,93644.0,93643.0,0.064073]
[1732107391371,0.0457,93649.0,93641.0,0.064073]
[1732107391574,0.15281512,93649.0,93646.0,0.06407]
[1732107391790,0.03188754,93648.0,93647.0,0.06407]
[1732107394622,0.03188793,93648.0,93647.0,0.06407]
[1732107395057,0.002,93650.0,93649.0,0.064069]
[1732107402038,0.002856,93650.0,93649.0,0.064069]
[1732107403180,0.02278192,93650.0,93649.0,0.064069]
[1732107404456,0.002856,93650.0,93649.0,0.064069]
[1732107407570,0.02278112,93650.0,93647.0,0.064069]
[1732107407791,0.002856,93650.0,93649.0,0.064069]
[1732107408023,0.1298967,93650.0,93647.0,0.064069]
[1732107408239,0.1270407,93649.0,93647.0,0.06407]
[1732107408435,0.01992558,93648.0,93647.0,0.06407]
[1732107409073,0.01992833,93648.0,93634.0,0.1]
[1732107409275,0.10711512,93649.0,93634.0,0.1]
[1732107409276,0.10711512,93649.0,93647.0,0.064069]
[1732107409521,0.01992945,93648.0,93647.0,0.064069]
[1732107410030,0.002856,93650.0,93649.0,0.064069]
[1732107414792,0.02279628,93650.0,93649.0,0.064069]
[1732107415234,0.002856,93650.0,93649.0,0.064069]
[1732107415438,0.02280142,93650.0,93649.0,0.064069]
[1732107417781,0.002856,93650.0,93649.0,0.064069]
[1732107417914,0.02280562,93650.0,93649.0,0.064069]
[1732107418457,0.02280562,93650.0,93649.0,0.087069]
[1732107418458,0.002856,93650.0,93649.0,0.087069]
[1732107419739,0.002856,93650.0,93649.0,0.53055816]
[1732107419938,0.002856,93650.0,93649.0,0.30038308]
[1732107421143,0.002856,93650.0,93649.0,0.265769]
[1732107421350,0.002856,93650.0,93649.0,0.165769]
[1732107421597,0.02281536,93650.0,93649.0,0.064069]
[1732107422303,0.002856,93650.0,93649.0,0.087069]
[1732107422960,0.002856,93650.0,93649.0,0.169069]
[1732107423442,0.002856,93650.0,93647.0,0.064069]
[1732107423607,0.002856,93650.0,93649.0,0.064069]
[1732107426949,0.02282045,93650.0,93649.0,0.064069]
[1732107428504,0.0228207,93650.0,93649.0,0.062969]
[1732107429857,0.0228207,93650.0,93646.0,0.05064973]
[1732107430084,0.002856,93650.0,93649.0,0.064069]
[1732107432298,0.02282012,93650.0,93649.0,0.064069]
[1732107437295,0.12960127,93650.0,93646.0,0.06407]
[1732107437510,0.01996427,93649.0,93646.0,0.06407]
[1732107437731,0.01996427,93648.0,93647.0,0.06407]
[1732107438402,0.01996427,93648.0,93644.0,0.0017118]
[1732107438613,0.01996427,93647.0,93644.0,0.0017118]
[1732107438815,0.01996427,93646.0,93644.0,0.0017118]
[1732107439023,0.35946539,93645.0,93644.0,0.0017118]
[1732107439516,0.39140879,93645.0,93644.0,0.0017118]
[1732107439745,0.40473712,93645.0,93644.0,0.0017118]
[1732107440204,0.39140879,93645.0,93644.0,0.0017118]
[1732107440429,0.40473721,93645.0,93644.0,0.0017118]
[1732107441576,0.41473721,93645.0,93644.0,0.0017118]
[1732107441862,0.42473721,93645.0,93644.0,0.0017118]
[1732107444137,0.42467963,93645.0,93644.0,0.0017118]
[1732107446320,0.20536393,93645.0,93644.0,0.0017118]
[1732107446929,0.31214993,93645.0,93644.0,0.0017118]
[1732107447133,0.20536393,93645.0,93644.0,0.0017118]
[1732107447513,0.31214993,93645.0,93644.0,0.0017118]
[1732107447733,0.20536393,93645.0,93644.0,0.0017118]
[1732107447910,0.31214993,93645.0,93644.0,0.0017118]
[1732107448787,0.20536393,93645.0,93644.0,0.0017118]
[1732107448920,0.20536393,93645.0,93644.0,0.0657838]
[1732107449121,0.31214993,93645.0,93644.0,0.0017118]
[1732107451187,0.32214993,93645.0,93644.0,0.0017118]
[1732107451421,0.33547923,93645.0,93644.0,0.0017118]
[1732107451631,0.20536393,93645.0,93644.0,0.0017118]
[1732107451988,0.31214993,93645.0,93644.0,0.0017118]
[1732107452341,0.31214993,93645.0,93644.0,0.0007118]
[1732107453181,0.32214993,93645.0,93644.0,0.0007118]
[1732107455818,0.33547881,93645.0,93644.0,0.0007118]
[1732107456015,0.32214993,93645.0,93644.0,0.0007118]
[1732107456238,0.33547881,93645.0,93644.0,0.0007118]
[1732107456730,0.32214993,93645.0,93644.0,0.0007118]
[1732107457156,0.33547881,93645.0,93644.0,0.0007118]
[1732107458110,0.32214993,93645.0,93644.0,0.0007118]
[1732107458532,0.42827939,93645.0,93644.0,0.0007118]
[1732107459175,0.55127939,93645.0,93644.0,0.0007118]
[1732107459665,0.55327939,93645.0,93644.0,0.0007118]
[1732107460219,0.55127939,93645.0,93644.0,0.0007118]
[1732107463944,0.55327939,93645.0,93644.0,0.0007118]
[1732107465068,0.53994993,93645.0,93644.0,0.0007118]
[1732107465686,0.02,93630.0,93629.0,0.001712]
[1732107465900,0.33526693,93630.0,93629.0,0.001712]
[1732107466507,0.41796693,93630.0,93629.0,0.001712]
[1732107467136,0.33526693,93630.0,93629.0,0.001712]
[1732107469609,0.01,93625.0,93618.0,0.064089]
[1732107469763,0.12705697,93624.0,93620.0,0.064088]
[1732107469964,0.05186518,93623.0,93620.0,0.064088]
[1732107470193,0.01994185,93622.0,93621.0,0.064088]
[1732107470394,0.01994185,93622.0,93621.0,0.145688]
[1732107470838,0.10711512,93626.0,93625.0,0.064085]
[1732107471039,0.12706563,93626.0,93625.0,0.064085]
[1732107472645,0.01995051,93626.0,93625.0,0.18714496]
[1732107472851,7e-05,93652.0,93649.0,0.064069]
[1732107473055,0.1618372,93650.0,93649.0,0.064069]
[1732107473877,0.12991961,93650.0,93649.0,0.064069]
[1732107476762,0.12991961,93650.0,93644.0,0.0657838]
[1732107477016,0.12706361,93649.0,93646.0,0.06407]
[1732107477169,0.12706361,93649.0,93644.0,0.0017118]
[1732107477170,0.01994849,93648.0,93644.0,0.0017118]
[1732107477343,0.106786,93645.0,93644.0,0.0017118]
[1732107477547,0.23384961,93645.0,93644.0,0.0017118]
[1732107477752,0.12706361,93645.0,93644.0,0.0017118]
[1732107478161,0.27574226,93645.0,93644.0,0.0017118]
[1732107478432,0.16894031,93645.0,93644.0,0.0017118]
[1732107481844,2.26589336,93621.0,93618.0,0.06409]
[1732107482050,2.26589336,93621.0,93620.0,0.064088]
[1732107483411,2.26589336,93621.0,93620.0,0.28714796]
[1732107484697,2.26589336,93621.0,93620.0,0.41704796]
[1732107484991,2.26589336,93621.0,93620.0,0.55967076]
[1732107487266,2.26589336,93621.0,93620.0,0.55973596]
[1732107487800,2.26589336,93621.0,93620.0,0.41704796]
[1732107488136,2.26589336,93621.0,93620.0,0.41875976]
[1732107488384,2.26589336,93621.0,93620.0,0.37175976]
[1732107488558,2.26589336,93621.0,93620.0,0.2486998]
[1732107489735,0.4191402,93620.0,93619.0,0.18714896]
[1732107490207,0.4191402,93620.0,93619.0,0.34986408]
[1732107490423,0.4191402,93620.0,93619.0,0.37286408]
[1732107491049,0.4191402,93620.0,93619.0,0.51560038]
[1732107491201,0.4191402,93620.0,93619.0,0.37286408]
[1732107491978,0.4191402,93620.0,93619.0,0.47286408]
[1732107492941,0.4191402,93620.0,93619.0,0.55396408]
[1732107494209,0.4191402,93620.0,93619.0,0.69671294]
[1732107494392,0.4191402,93620.0,93619.0,0.43684896]
[1732107494796,0.4191402,93620.0,93619.0,0.46346244]
[1732107495200,0.4191402,93620.0,93619.0,0.46345853]
[1732107496701,0.4191402,93620.0,93619.0,0.36824896]
[1732107497118,0.4191402,93620.0,93619.0,0.30415996]
[1732107497321,0.4191402,93620.0,93619.0,0.28714896]
[1732107497722,0.4191402,93620.0,93618.0,0.03440545]
[1732107498168,0.4191402,93620.0,93617.0,0.12818]
[1732107498786,0.4191402,93620.0,93617.0,0.06409]
[1732107498992,0.4191402,93620.0,93614.0,0.1]
[1732107498993,0.4191402,93620.0,93618.0,0.064089]
[1732107499403,0.4191402,93620.0,93613.0,0.15930257]
[1732107499404,0.4191402,93620.0,93613.0,0.13389002]
[1732107499620,0.4191402,93620.0,93617.0,0.06409]
[1732107499965,0.4191402,93620.0,93618.0,0.064089]
[1732107500313,0.4191402,93620.0,93619.0,0.064089]
[1732107501314,0.4191402,93620.0,93613.0,0.12909959]
[1732107501481,0.4191402,93620.0,93613.0,0.03389002]
[1732107501675,0.4191402,93620.0,93607.0,0.14274886]
[1732107501676,0.0468,93619.0,93608.0,0.064096]
[1732107501948,0.0468,93619.0,93614.0,0.0017122]
[1732107504643,0.18182,93615.0,93614.0,0.0017122]
[1732107504967,0.3088892,93615.0,93614.0,0.0017122]
[1732107505933,0.3567892,93615.0,93614.0,0.0017122]
[1732107506592,0.2499692,93615.0,93614.0,0.0017122]
[1732107506796,0.14285408,93615.0,93614.0,0.0017122]
[1732107506974,0.1229,93615.0,93614.0,0.0017122]
[1732107507615,1.90793356,93621.0,93614.0,0.0017122]
[1732107507783,1.90793356,93621.0,93620.0,0.064088]
[1732107507991,1.90793356,93621.0,93616.0,0.064091]
[1732107508206,1.90793356,93621.0,93618.0,0.064089]
[1732107508400,1.90793356,93621.0,93619.0,0.064089]
[1732107508575,1.90793356,93621.0,93620.0,0.064088]